[Event "Titled Tuesday Blitz October 18 Late 2022"]
[White "Thomforde-Toates, Noah"]
[Black "Paravyan, David"]
[WhiteFideId "30951992"]
[BlackFideId "4194985"]
[WhiteElo "2654"]
[BlackElo "2555"]
[Result "1/2-1/2"]
[Round "04"]
[TimeControl "180+1"]
[Date "2022.10.18"]
[WhiteClock "0:00:18"]
[BlackClock "0:00:19"]

1. d4 {[%clk 0:03:00]}  Nf6 {[%clk 0:03:00]} 2. Nc3 {[%clk 0:02:59]}  d5 {[%clk 0:02:58]} 3. Bf4 {[%clk 0:02:58]}  g6 {[%clk 0:02:57]} 4. e3 {[%clk 0:02:58]}  Bg7 {[%clk 0:02:56]} 5. h4 {[%clk 0:02:58]}  h5 {[%clk 0:02:55]} 6. Be2 {[%clk 0:02:58]}  O-O {[%clk 0:02:47]} 7. Nf3 {[%clk 0:02:56]}  c5 {[%clk 0:02:45]} 8. Ne5 {[%clk 0:02:51]}  Nc6 {[%clk 0:02:44]} 9. dxc5 {[%clk 0:02:42]}  Qa5 {[%clk 0:02:38]} 10. O-O {[%clk 0:02:38]}  Bf5 {[%clk 0:02:35]} 11. Bd3 {[%clk 0:01:45]}  Bxd3 {[%clk 0:02:31]} 12. cxd3 {[%clk 0:01:43]}  Qxc5 {[%clk 0:02:28]} 13. d4 {[%clk 0:01:42]}  Qb6 {[%clk 0:02:26]} 14. Qe2 {[%clk 0:01:25]}  Rac8 {[%clk 0:02:24]} 15. Rfc1 {[%clk 0:01:23]}  e6 {[%clk 0:02:12]} 16. Na4 {[%clk 0:01:20]}  Qb4 {[%clk 0:02:08]} 17. Nc5 {[%clk 0:01:19]}  Nxe5 {[%clk 0:02:04]} 18. Bxe5 {[%clk 0:01:18]}  Rfd8 {[%clk 0:01:46]} 19. a3 {[%clk 0:01:02]}  Qb6 {[%clk 0:01:44]} 20. b4 {[%clk 0:01:02]}  a6 {[%clk 0:01:33]} 21. Rab1 {[%clk 0:01:01]}  Ng4 {[%clk 0:01:21]} 22. Bxg7 {[%clk 0:00:59]}  Kxg7 {[%clk 0:01:21]} 23. g3 {[%clk 0:00:54]}  Rc7 {[%clk 0:01:18]} 24. a4 {[%clk 0:00:47]}  Qd6 {[%clk 0:01:13]} 25. a5 {[%clk 0:00:35]}  Rdc8 {[%clk 0:01:07]} 26. Kg2 {[%clk 0:00:36]}  Qe7 {[%clk 0:01:06]} 27. b5 {[%clk 0:00:34]}  axb5 {[%clk 0:01:06]} 28. Rxb5 {[%clk 0:00:33]}  e5 {[%clk 0:01:05]} 29. Qf3 {[%clk 0:00:30]}  Nf6 {[%clk 0:00:28]} 30. Rcb1 {[%clk 0:00:28]}  exd4 {[%clk 0:00:26]} 31. exd4 {[%clk 0:00:28]}  Ne4 {[%clk 0:00:27]} 32. Nxe4 {[%clk 0:00:24]}  dxe4 {[%clk 0:00:26]} 33. Qf4 {[%clk 0:00:24]}  Rd7 {[%clk 0:00:19]} 34. Re5 {[%clk 0:00:23]}  Qd6 {[%clk 0:00:16]} 35. Rxe4 {[%clk 0:00:23]}  Qxf4 {[%clk 0:00:14]} 36. Rxf4 {[%clk 0:00:24]}  Rcd8 {[%clk 0:00:13]} 37. Rb6 {[%clk 0:00:23]}  Rxd4 {[%clk 0:00:12]} 38. Rxd4 {[%clk 0:00:23]}  Rxd4 {[%clk 0:00:13]} 39. Rxb7 {[%clk 0:00:23]}  Ra4 {[%clk 0:00:14]} 40. Ra7 {[%clk 0:00:24]}  Kf6 {[%clk 0:00:14]} 41. a6 {[%clk 0:00:24]}  Ra3 {[%clk 0:00:14]} 42. Ra8 {[%clk 0:00:25]}  Kf5 {[%clk 0:00:15]} 43. a7 {[%clk 0:00:24]}  Kf6 {[%clk 0:00:12]} 44. Kf1 {[%clk 0:00:23]}  Ra2 {[%clk 0:00:13]} 45. Ke1 {[%clk 0:00:23]}  Kf5 {[%clk 0:00:13]} 46. f3 {[%clk 0:00:23]}  Kf6 {[%clk 0:00:13]} 47. Kd1 {[%clk 0:00:23]}  Kg7 {[%clk 0:00:14]} 48. Kc1 {[%clk 0:00:23]}  Ra6 {[%clk 0:00:13]} 49. Kb2 {[%clk 0:00:24]}  Ra5 {[%clk 0:00:14]} 50. Kc3 {[%clk 0:00:24]}  Ra1 {[%clk 0:00:14]} 51. Kb4 {[%clk 0:00:24]}  Ra2 {[%clk 0:00:14]} 52. Kc5 {[%clk 0:00:25]}  Ra1 {[%clk 0:00:15]} 53. Kd4 {[%clk 0:00:25]}  Ra2 {[%clk 0:00:15]} 54. Ke5 {[%clk 0:00:25]}  Ra1 {[%clk 0:00:15]} 55. g4 {[%clk 0:00:22]}  hxg4 {[%clk 0:00:16]} 56. fxg4 {[%clk 0:00:23]}  Ra2 {[%clk 0:00:17]} 57. h5 {[%clk 0:00:23]}  gxh5 {[%clk 0:00:17]} 58. gxh5 {[%clk 0:00:23]}  Ra1 {[%clk 0:00:16]} 59. h6+ {[%clk 0:00:23]}  Kh7 {[%clk 0:00:17]} 60. Kf6 {[%clk 0:00:23]}  Ra2 {[%clk 0:00:17]} 61. Kxf7 {[%clk 0:00:23]}  Ra1 {[%clk 0:00:18]} 62. Kf6 {[%clk 0:00:21]}  Ra2 {[%clk 0:00:18]} 63. Rf8 {[%clk 0:00:16]}  Rxa7 {[%clk 0:00:18]} 64. Rf7+ {[%clk 0:00:17]}  Rxf7+ {[%clk 0:00:18]} 65. Kxf7 {[%clk 0:00:18]}  Kxh6 {[%clk 0:00:19]} 1/2-1/2


[Site "https://www.chess.com"]

[Event "Titled Tuesday Blitz October 18 Late 2022"]
[White "Tomaszewski, Kacper"]
[Black "Winkels, Marcel"]
[WhiteFideId "1127373"]
[BlackFideId "1003887"]
[WhiteElo "2211"]
[BlackElo "1900"]
[Result "1-0"]
[Round "04"]
[TimeControl "180+1"]
[Date "2022.10.19"]
[WhiteClock "0:00:16"]
[BlackClock "0:00:02"]

1. e4 {[%clk 0:03:00]}  c5 {[%clk 0:02:59]} 2. Nf3 {[%clk 0:03:00]}  d6 {[%clk 0:02:59]} 3. Bb5+ {[%clk 0:02:59]}  Nd7 {[%clk 0:02:58]} 4. O-O {[%clk 0:02:55]}  a6 {[%clk 0:02:58]} 5. Bd3 {[%clk 0:02:54]}  Ngf6 {[%clk 0:02:57]} 6. c3 {[%clk 0:02:53]}  e6 {[%clk 0:02:56]} 7. Bc2 {[%clk 0:02:47]}  Be7 {[%clk 0:02:55]} 8. d4 {[%clk 0:02:47]}  cxd4 {[%clk 0:02:51]} 9. cxd4 {[%clk 0:02:48]}  O-O {[%clk 0:02:45]} 10. Nc3 {[%clk 0:02:47]}  b5 {[%clk 0:02:43]} 11. e5 {[%clk 0:02:44]}  Nd5 {[%clk 0:02:35]} 12. Qd3 {[%clk 0:02:34]}  g6 {[%clk 0:02:30]} 13. Nxd5 {[%clk 0:02:30]}  exd5 {[%clk 0:02:29]} 14. Bh6 {[%clk 0:02:30]}  Re8 {[%clk 0:02:28]} 15. Rfe1 {[%clk 0:02:27]}  Bb7 {[%clk 0:02:09]} 16. e6 {[%clk 0:02:22]}  Nf6 {[%clk 0:02:04]} 17. exf7+ {[%clk 0:02:16]}  Kxf7 {[%clk 0:02:04]} 18. Ng5+ {[%clk 0:02:17]}  Kg8 {[%clk 0:01:54]} 19. Nxh7 {[%clk 0:02:13]}  Ne4 {[%clk 0:01:51]} 20. f3 {[%clk 0:01:33]}  Kxh7 {[%clk 0:01:48]} 21. fxe4 {[%clk 0:01:33]}  dxe4 {[%clk 0:01:47]} 22. Qh3 {[%clk 0:01:31]}  Bc8 {[%clk 0:01:38]} 23. Qg3 {[%clk 0:01:19]}  d5 {[%clk 0:01:19]} 24. Rxe4 {[%clk 0:01:09]}  dxe4 {[%clk 0:01:03]} 25. Be3 {[%clk 0:01:03]}  Bh4 {[%clk 0:00:57]} 26. Qf4 {[%clk 0:00:57]}  g5 {[%clk 0:00:56]} 27. Bxe4+ {[%clk 0:00:53]}  Kg8 {[%clk 0:00:51]} 28. Qf3 {[%clk 0:00:46]}  Rf8 {[%clk 0:00:33]} 29. Bd5+ {[%clk 0:00:27]}  Kg7 {[%clk 0:00:30]} 30. Qe4 {[%clk 0:00:27]}  Bf5 {[%clk 0:00:28]} 31. Qe5+ {[%clk 0:00:26]}  Qf6 {[%clk 0:00:25]} 32. Bxa8 {[%clk 0:00:25]}  Qxe5 {[%clk 0:00:23]} 33. dxe5 {[%clk 0:00:26]}  Rxa8 {[%clk 0:00:21]} 34. g3 {[%clk 0:00:27]}  Re8 {[%clk 0:00:18]} 35. gxh4 {[%clk 0:00:27]}  gxh4 {[%clk 0:00:14]} 36. Rf1 {[%clk 0:00:24]}  Kg6 {[%clk 0:00:11]} 37. Bd4 {[%clk 0:00:20]}  h3 {[%clk 0:00:10]} 38. Rf3 {[%clk 0:00:20]}  Be4 {[%clk 0:00:08]} 39. Rg3+ {[%clk 0:00:20]}  Kf5 {[%clk 0:00:07]} 40. a3 {[%clk 0:00:20]}  Bg2 {[%clk 0:00:04]} 41. Kf2 {[%clk 0:00:20]}  Rd8 {[%clk 0:00:04]} 42. Bc3 {[%clk 0:00:20]}  Rd5 {[%clk 0:00:03]} 43. Rg8 {[%clk 0:00:19]}  Rd1 {[%clk 0:00:02]} 44. Rf8+ {[%clk 0:00:19]}  Ke4 {[%clk 0:00:02]} 45. e6 {[%clk 0:00:18]}  Rf1+ {[%clk 0:00:01]} 46. Kg3 {[%clk 0:00:17]}  Rxf8 {[%clk 0:00:02]} 47. Bb4 {[%clk 0:00:16]} 1-0


[Site "https://www.chess.com"]

[Event "Titled Tuesday Blitz October 18 Late 2022"]
[White "Torres Boch, Jose Francisco"]
[Black "Tan, Ralph"]
[WhiteFideId "2278383"]
[BlackFideId "30966590"]
[WhiteElo "2073"]
[BlackElo "2059"]
[Result "0-1"]
[Round "04"]
[TimeControl "180+1"]
[Date "2022.10.19"]
[WhiteClock "0:00:16"]
[BlackClock "0:00:13"]

1. e4 {[%clk 0:02:56]}  e6 {[%clk 0:02:59]} 2. d4 {[%clk 0:02:55]}  d5 {[%clk 0:03:00]} 3. Nc3 {[%clk 0:02:56]}  Nf6 {[%clk 0:03:00]} 4. e5 {[%clk 0:02:56]}  Nfd7 {[%clk 0:03:00]} 5. f4 {[%clk 0:02:56]}  c5 {[%clk 0:03:00]} 6. Nf3 {[%clk 0:02:57]}  Nc6 {[%clk 0:03:01]} 7. Be3 {[%clk 0:02:57]}  a6 {[%clk 0:02:57]} 8. Qd2 {[%clk 0:02:56]}  cxd4 {[%clk 0:02:56]} 9. Nxd4 {[%clk 0:02:55]}  Bc5 {[%clk 0:02:56]} 10. O-O-O {[%clk 0:02:52]}  Nxd4 {[%clk 0:02:49]} 11. Bxd4 {[%clk 0:02:43]}  b5 {[%clk 0:02:49]} 12. f5 {[%clk 0:02:00]}  Bxd4 {[%clk 0:02:45]} 13. Qxd4 {[%clk 0:01:59]}  Qg5+ {[%clk 0:02:44]} 14. Kb1 {[%clk 0:01:58]}  Qxf5 {[%clk 0:02:44]} 15. Bd3 {[%clk 0:01:57]}  Qxe5 {[%clk 0:02:44]} 16. Qg4 {[%clk 0:01:52]}  O-O {[%clk 0:02:11]} 17. Rde1 {[%clk 0:01:48]}  Qd6 {[%clk 0:02:11]} 18. Qh5 {[%clk 0:01:43]}  Nf6 {[%clk 0:02:09]} 19. Qh4 {[%clk 0:01:43]}  e5 {[%clk 0:02:02]} 20. g4 {[%clk 0:01:42]}  e4 {[%clk 0:02:03]} 21. g5 {[%clk 0:01:42]}  Ng4 {[%clk 0:01:51]} 22. Nxe4 {[%clk 0:01:40]}  dxe4 {[%clk 0:01:40]} 23. Bxe4 {[%clk 0:01:41]}  g6 {[%clk 0:01:31]} 24. Bxa8 {[%clk 0:01:40]}  Bf5 {[%clk 0:01:14]} 25. Be4 {[%clk 0:01:38]}  Be6 {[%clk 0:01:10]} 26. h3 {[%clk 0:01:25]}  Ne5 {[%clk 0:01:09]} 27. Qf2 {[%clk 0:01:25]}  Nc4 {[%clk 0:01:07]} 28. Bd3 {[%clk 0:01:14]}  Nb6 {[%clk 0:00:44]} 29. h4 {[%clk 0:01:09]}  Na4 {[%clk 0:00:44]} 30. Qd2 {[%clk 0:00:57]}  Qd4 {[%clk 0:00:29]} 31. Qc1 {[%clk 0:00:43]}  Qb4 {[%clk 0:00:22]} 32. Ka1 {[%clk 0:00:34]}  Rc8 {[%clk 0:00:17]} 33. h5 {[%clk 0:00:22]}  Qa5 {[%clk 0:00:15]} 34. b3 {[%clk 0:00:15]}  Qc3+ {[%clk 0:00:13]} 35. Qb2 {[%clk 0:00:16]}  Qxb2# {[%clk 0:00:13]} 0-1


[Site "https://www.chess.com"]

[Event "Titled Tuesday Blitz October 18 Late 2022"]
[White "Von Buelow, Georg"]
[Black "Vargas, Mauricio"]
[WhiteFideId "4620658"]
[BlackFideId "4404572"]
[WhiteElo "2233"]
[BlackElo "2025"]
[Result "1-0"]
[Round "04"]
[TimeControl "180+1"]
[Date "2022.10.19"]
[WhiteClock "0:02:37"]
[BlackClock "0:01:11"]

1. e4 {[%clk 0:03:00]}  d5 {[%clk 0:01:45]} 2. exd5 {[%clk 0:03:00]}  Qxd5 {[%clk 0:01:46]} 3. Nc3 {[%clk 0:03:00]}  Qa5 {[%clk 0:01:46]} 4. d4 {[%clk 0:02:59]}  c6 {[%clk 0:01:47]} 5. Nf3 {[%clk 0:02:59]}  Qc7 {[%clk 0:01:48]} 6. Bc4 {[%clk 0:02:59]}  Bg4 {[%clk 0:01:48]} 7. h3 {[%clk 0:02:54]}  Bxf3 {[%clk 0:01:48]} 8. Qxf3 {[%clk 0:02:52]}  Nf6 {[%clk 0:01:49]} 9. Bf4 {[%clk 0:02:49]}  Qd8 {[%clk 0:01:41]} 10. O-O-O {[%clk 0:02:48]}  Nbd7 {[%clk 0:01:40]} 11. d5 {[%clk 0:02:44]}  cxd5 {[%clk 0:01:34]} 12. Nxd5 {[%clk 0:02:44]}  Nxd5 {[%clk 0:01:34]} 13. Qxd5 {[%clk 0:02:41]}  e6 {[%clk 0:01:27]} 14. Qxb7 {[%clk 0:02:40]}  Be7 {[%clk 0:01:20]} 15. Rxd7 {[%clk 0:02:39]}  Qxd7 {[%clk 0:01:19]} 16. Qxa8+ {[%clk 0:02:39]}  Bd8 {[%clk 0:01:19]} 17. Rd1 {[%clk 0:02:38]}  Qe7 {[%clk 0:01:14]} 18. Bb5+ {[%clk 0:02:37]}  Kf8 {[%clk 0:01:13]} 19. Rxd8+ {[%clk 0:02:36]}  Qxd8 {[%clk 0:01:11]} 20. Qxd8# {[%clk 0:02:37]} 1-0


[Site "https://www.chess.com"]

[Event "Titled Tuesday Blitz October 18 Late 2022"]
[White "Yi, Richard"]
[Black "Erdogdu, Mert"]
[WhiteFideId "2079518"]
[BlackFideId "6301495"]
[WhiteElo "2147"]
[BlackElo "2413"]
[Result "0-1"]
[Round "04"]
[TimeControl "180+1"]
[Date "2022.10.18"]
[WhiteClock "0:00:03"]
[BlackClock "0:00:34"]

1. c4 {[%clk 0:03:00]}  e6 {[%clk 0:02:59]} 2. Nf3 {[%clk 0:02:58]}  d5 {[%clk 0:03:00]} 3. d4 {[%clk 0:02:53]}  c5 {[%clk 0:02:59]} 4. cxd5 {[%clk 0:02:52]}  exd5 {[%clk 0:03:00]} 5. g3 {[%clk 0:02:53]}  Nf6 {[%clk 0:03:00]} 6. Bg2 {[%clk 0:02:53]}  Nc6 {[%clk 0:03:01]} 7. O-O {[%clk 0:02:53]}  Be7 {[%clk 0:03:01]} 8. dxc5 {[%clk 0:02:53]}  Bxc5 {[%clk 0:03:02]} 9. a3 {[%clk 0:02:54]}  Ne4 {[%clk 0:03:01]} 10. b4 {[%clk 0:02:54]}  Bb6 {[%clk 0:03:02]} 11. Nfd2 {[%clk 0:02:50]}  f5 {[%clk 0:02:57]} 12. Bb2 {[%clk 0:02:45]}  O-O {[%clk 0:02:56]} 13. Nc3 {[%clk 0:02:40]}  Nxc3 {[%clk 0:02:23]} 14. Bxc3 {[%clk 0:02:39]}  d4 {[%clk 0:02:23]} 15. Bb2 {[%clk 0:02:38]}  Be6 {[%clk 0:02:24]} 16. b5 {[%clk 0:02:15]}  Na5 {[%clk 0:02:16]} 17. Nf3 {[%clk 0:01:51]}  Nb3 {[%clk 0:01:52]} 18. Rb1 {[%clk 0:01:51]}  Qd7 {[%clk 0:01:49]} 19. Qd3 {[%clk 0:01:39]}  Rad8 {[%clk 0:01:46]} 20. Ne5 {[%clk 0:01:35]}  Qc7 {[%clk 0:01:36]} 21. Nf3 {[%clk 0:01:33]}  Bc4 {[%clk 0:01:25]} 22. Qd1 {[%clk 0:01:30]}  Rfe8 {[%clk 0:01:21]} 23. Re1 {[%clk 0:01:04]}  Ba5 {[%clk 0:01:20]} 24. Rf1 {[%clk 0:00:47]}  Rxe2 {[%clk 0:01:13]} 25. Bxd4 {[%clk 0:00:44]}  Nxd4 {[%clk 0:01:08]} 26. Nxd4 {[%clk 0:00:44]}  Rd2 {[%clk 0:01:08]} 27. b6 {[%clk 0:00:30]}  axb6 {[%clk 0:01:04]} 28. Nb5 {[%clk 0:00:30]}  Bxb5 {[%clk 0:00:56]} 29. Qb3+ {[%clk 0:00:21]}  Bc4 {[%clk 0:00:56]} 30. Rfc1 {[%clk 0:00:22]}  b5 {[%clk 0:00:42]} 31. Qf3 {[%clk 0:00:14]}  Bb6 {[%clk 0:00:38]} 32. Qxf5 {[%clk 0:00:03]}  Rxf2 {[%clk 0:00:34]} 0-1


[Site "https://www.chess.com"]

[Event "Titled Tuesday Blitz October 18 Late 2022"]
[White "Zhigalko, Sergei"]
[Black "Gubajdullin, Alexei"]
[WhiteFideId "13502956"]
[BlackFideId "4141202"]
[WhiteElo "2662"]
[BlackElo "2200"]
[Result "1-0"]
[Round "04"]
[TimeControl "180+1"]
[Date "2022.10.18"]
[WhiteClock "0:00:09"]
[BlackClock "0:00:02"]

1. e4 {[%clk 0:03:00]}  c6 {[%clk 0:02:59]} 2. d4 {[%clk 0:03:00]}  d5 {[%clk 0:02:58]} 3. e5 {[%clk 0:03:01]}  Bf5 {[%clk 0:02:58]} 4. Nf3 {[%clk 0:03:02]}  e6 {[%clk 0:02:58]} 5. Be2 {[%clk 0:03:02]}  Nd7 {[%clk 0:02:58]} 6. O-O {[%clk 0:03:03]}  Ne7 {[%clk 0:02:58]} 7. Nbd2 {[%clk 0:03:03]}  h6 {[%clk 0:02:58]} 8. a4 {[%clk 0:03:03]}  Bh7 {[%clk 0:02:57]} 9. a5 {[%clk 0:03:03]}  a6 {[%clk 0:02:57]} 10. c3 {[%clk 0:03:03]}  Ng6 {[%clk 0:02:56]} 11. Re1 {[%clk 0:02:59]}  Be7 {[%clk 0:02:56]} 12. b4 {[%clk 0:02:59]}  O-O {[%clk 0:02:55]} 13. Bd3 {[%clk 0:02:59]}  Re8 {[%clk 0:02:54]} 14. Nb3 {[%clk 0:02:40]}  Ngf8 {[%clk 0:02:51]} 15. g3 {[%clk 0:02:34]}  Bxd3 {[%clk 0:02:50]} 16. Qxd3 {[%clk 0:02:34]}  Qc7 {[%clk 0:02:46]} 17. h4 {[%clk 0:02:31]}  Rad8 {[%clk 0:02:45]} 18. Bf4 {[%clk 0:02:27]}  Ng6 {[%clk 0:02:40]} 19. Bd2 {[%clk 0:02:26]}  Bf8 {[%clk 0:02:40]} 20. h5 {[%clk 0:02:25]}  Ne7 {[%clk 0:02:38]} 21. Bf4 {[%clk 0:02:23]}  Qc8 {[%clk 0:02:37]} 22. Kg2 {[%clk 0:02:22]}  Kh8 {[%clk 0:02:19]} 23. Nh4 {[%clk 0:02:16]}  Ng8 {[%clk 0:02:17]} 24. g4 {[%clk 0:02:13]}  Be7 {[%clk 0:02:17]} 25. Bg3 {[%clk 0:02:13]}  Nf8 {[%clk 0:02:17]} 26. Re2 {[%clk 0:02:05]}  Nh7 {[%clk 0:02:06]} 27. Rae1 {[%clk 0:01:51]}  Rf8 {[%clk 0:02:05]} 28. f4 {[%clk 0:01:38]}  Rde8 {[%clk 0:02:03]} 29. Nf3 {[%clk 0:01:22]}  Bd8 {[%clk 0:01:39]} 30. Nc5 {[%clk 0:01:19]}  Be7 {[%clk 0:01:38]} 31. Nb3 {[%clk 0:01:03]}  Bd8 {[%clk 0:01:37]} 32. Nbd2 {[%clk 0:00:56]}  Be7 {[%clk 0:01:36]} 33. Nf1 {[%clk 0:00:55]}  Bd8 {[%clk 0:01:34]} 34. Ne3 {[%clk 0:00:54]}  Qd7 {[%clk 0:01:34]} 35. Nd1 {[%clk 0:00:48]}  Bc7 {[%clk 0:01:29]} 36. Nf2 {[%clk 0:00:47]}  Bd8 {[%clk 0:01:28]} 37. Nh3 {[%clk 0:00:47]}  Be7 {[%clk 0:01:25]} 38. f5 {[%clk 0:00:37]}  Qd8 {[%clk 0:01:10]} 39. fxe6 {[%clk 0:00:29]}  fxe6 {[%clk 0:01:09]} 40. Nf4 {[%clk 0:00:30]}  Rxf4 {[%clk 0:01:05]} 41. Bxf4 {[%clk 0:00:30]}  Rf8 {[%clk 0:01:05]} 42. Qe3 {[%clk 0:00:29]}  Bg5 {[%clk 0:00:59]} 43. Bxg5 {[%clk 0:00:27]}  hxg5 {[%clk 0:00:58]} 44. Rf2 {[%clk 0:00:27]}  Rf4 {[%clk 0:00:57]} 45. Nh2 {[%clk 0:00:26]}  Rxf2+ {[%clk 0:00:40]} 46. Qxf2 {[%clk 0:00:26]}  Nh6 {[%clk 0:00:39]} 47. Rf1 {[%clk 0:00:25]}  Kg8 {[%clk 0:00:38]} 48. Qc2 {[%clk 0:00:25]}  Nf8 {[%clk 0:00:36]} 49. Kg3 {[%clk 0:00:23]}  Qe7 {[%clk 0:00:35]} 50. Qd2 {[%clk 0:00:21]}  Nh7 {[%clk 0:00:34]} 51. Qd3 {[%clk 0:00:20]}  Nf8 {[%clk 0:00:33]} 52. Nf3 {[%clk 0:00:20]}  Nf7 {[%clk 0:00:32]} 53. Nd2 {[%clk 0:00:20]}  Nh6 {[%clk 0:00:28]} 54. Nb3 {[%clk 0:00:19]}  Nh7 {[%clk 0:00:27]} 55. Nc5 {[%clk 0:00:19]}  Nf7 {[%clk 0:00:25]} 56. Qg6 {[%clk 0:00:15]}  Nf8 {[%clk 0:00:23]} 57. Qxf7+ {[%clk 0:00:12]}  Qxf7 {[%clk 0:00:22]} 58. Rxf7 {[%clk 0:00:13]}  Kxf7 {[%clk 0:00:22]} 59. Nxb7 {[%clk 0:00:14]}  Nd7 {[%clk 0:00:22]} 60. Nd8+ {[%clk 0:00:13]}  Ke8 {[%clk 0:00:15]} 61. Nxe6 {[%clk 0:00:12]}  Nb8 {[%clk 0:00:14]} 62. Nxg5 {[%clk 0:00:10]}  Ke7 {[%clk 0:00:14]} 63. Kf4 {[%clk 0:00:10]}  Nd7 {[%clk 0:00:13]} 64. Nf3 {[%clk 0:00:09]}  Nf8 {[%clk 0:00:13]} 65. g5 {[%clk 0:00:09]}  Ne6+ {[%clk 0:00:13]} 66. Kg4 {[%clk 0:00:10]}  Nc7 {[%clk 0:00:12]} 67. h6 {[%clk 0:00:08]}  gxh6 {[%clk 0:00:12]} 68. gxh6 {[%clk 0:00:09]}  Kf7 {[%clk 0:00:12]} 69. Kh5 {[%clk 0:00:09]}  Kg8 {[%clk 0:00:09]} 70. Ng5 {[%clk 0:00:10]}  Ne8 {[%clk 0:00:02]} 71. Kg6 {[%clk 0:00:09]} 1-0


[Site "https://www.chess.com"]

[Event "Titled Tuesday Blitz October 18 Late 2022"]
[White "Zou, Chen"]
[Black "Zochowski, Kacper"]
[WhiteFideId "8610959"]
[BlackFideId "1125494"]
[WhiteElo "2699"]
[BlackElo "2516"]
[Result "1-0"]
[Round "04"]
[TimeControl "180+1"]
[Date "2022.10.19"]
[WhiteClock "0:00:16"]
[BlackClock "0:00:09"]

1. d4 {[%clk 0:03:00]}  d6 {[%clk 0:03:00]} 2. c4 {[%clk 0:03:01]}  g6 {[%clk 0:02:59]} 3. Nf3 {[%clk 0:03:01]}  Bg7 {[%clk 0:03:00]} 4. g3 {[%clk 0:03:02]}  e5 {[%clk 0:02:59]} 5. Bg2 {[%clk 0:02:58]}  Nc6 {[%clk 0:02:59]} 6. d5 {[%clk 0:02:57]}  Nce7 {[%clk 0:02:59]} 7. e4 {[%clk 0:02:58]}  f5 {[%clk 0:02:57]} 8. exf5 {[%clk 0:02:58]}  gxf5 {[%clk 0:02:57]} 9. Nc3 {[%clk 0:02:57]}  Nf6 {[%clk 0:02:57]} 10. O-O {[%clk 0:02:56]}  O-O {[%clk 0:02:58]} 11. Nh4 {[%clk 0:02:52]}  Ng6 {[%clk 0:02:54]} 12. Bg5 {[%clk 0:02:51]}  Nxh4 {[%clk 0:02:49]} 13. Bxh4 {[%clk 0:02:52]}  a6 {[%clk 0:02:46]} 14. f4 {[%clk 0:02:38]}  e4 {[%clk 0:02:46]} 15. Qd2 {[%clk 0:02:37]}  Qe8 {[%clk 0:02:46]} 16. Nd1 {[%clk 0:02:31]}  b5 {[%clk 0:02:37]} 17. Ne3 {[%clk 0:02:29]}  bxc4 {[%clk 0:02:24]} 18. Rac1 {[%clk 0:02:29]}  Rb8 {[%clk 0:01:59]} 19. Rxc4 {[%clk 0:02:28]}  Ng4 {[%clk 0:01:58]} 20. Nxg4 {[%clk 0:02:22]}  fxg4 {[%clk 0:01:50]} 21. Rxe4 {[%clk 0:02:19]}  Qb5 {[%clk 0:01:32]} 22. b3 {[%clk 0:02:10]}  Bf5 {[%clk 0:01:32]} 23. Re7 {[%clk 0:02:09]}  Rfe8 {[%clk 0:01:33]} 24. Rfe1 {[%clk 0:02:04]}  Rxe7 {[%clk 0:01:32]} 25. Rxe7 {[%clk 0:02:05]}  Re8 {[%clk 0:01:33]} 26. Rxe8+ {[%clk 0:01:15]}  Qxe8 {[%clk 0:01:31]} 27. h3 {[%clk 0:00:52]}  gxh3 {[%clk 0:01:26]} 28. Bf3 {[%clk 0:00:52]}  Qb5 {[%clk 0:00:39]} 29. Kh2 {[%clk 0:00:43]}  a5 {[%clk 0:00:18]} 30. g4 {[%clk 0:00:40]}  Bd7 {[%clk 0:00:14]} 31. Qe2 {[%clk 0:00:39]}  Qc5 {[%clk 0:00:10]} 32. Kxh3 {[%clk 0:00:35]}  a4 {[%clk 0:00:09]} 33. Kg2 {[%clk 0:00:32]}  axb3 {[%clk 0:00:09]} 34. axb3 {[%clk 0:00:33]}  Qc1 {[%clk 0:00:10]} 35. Bg3 {[%clk 0:00:22]}  Qc3 {[%clk 0:00:06]} 36. Qc4 {[%clk 0:00:18]}  Qd2+ {[%clk 0:00:06]} 37. Qe2 {[%clk 0:00:18]}  Qa5 {[%clk 0:00:07]} 38. f5 {[%clk 0:00:18]}  Qc3 {[%clk 0:00:07]} 39. Qc4 {[%clk 0:00:16]}  Qd2+ {[%clk 0:00:07]} 40. Qe2 {[%clk 0:00:17]}  Qd4 {[%clk 0:00:07]} 41. Qe7 {[%clk 0:00:16]}  Bb5 {[%clk 0:00:06]} 42. Qd8+ {[%clk 0:00:16]}  Kf7 {[%clk 0:00:06]} 43. Qxc7+ {[%clk 0:00:16]}  Kg8 {[%clk 0:00:07]} 44. Qb8+ {[%clk 0:00:15]}  Bf8 {[%clk 0:00:07]} 45. Qxb5 {[%clk 0:00:15]}  Qd2+ {[%clk 0:00:08]} 46. Qe2 {[%clk 0:00:15]}  Qc1 {[%clk 0:00:09]} 47. Qe6+ {[%clk 0:00:15]}  Kh8 {[%clk 0:00:09]} 48. Qe2 {[%clk 0:00:16]}  Qc3 {[%clk 0:00:09]} 49. Bf2 {[%clk 0:00:16]}  Bg7 {[%clk 0:00:09]} 50. Qe8+ {[%clk 0:00:16]} 1-0


[Site "https://www.chess.com"]

[Event "Titled Tuesday Blitz October 18 Late 2022"]
[White "Aggelis, Nikolaos"]
[Black "Jean Louis, Marckens"]
[WhiteFideId "4213220"]
[BlackFideId "11900270"]
[WhiteElo "2187"]
[BlackElo "2030"]
[Result "0-1"]
[Round "05"]
[TimeControl "180+1"]
[Date "2022.10.19"]
[WhiteClock "0:00:48"]
[BlackClock "0:00:33"]

1. e4 {[%clk 0:03:00]}  e6 {[%clk 0:02:59]} 2. d4 {[%clk 0:03:00]}  d5 {[%clk 0:02:58]} 3. Nd2 {[%clk 0:03:00]}  Nf6 {[%clk 0:02:58]} 4. Bd3 {[%clk 0:03:00]}  dxe4 {[%clk 0:02:57]} 5. Nxe4 {[%clk 0:02:59]}  Be7 {[%clk 0:02:56]} 6. Nf3 {[%clk 0:02:58]}  O-O {[%clk 0:02:56]} 7. O-O {[%clk 0:02:58]}  b6 {[%clk 0:02:54]} 8. Qe2 {[%clk 0:02:54]}  Bb7 {[%clk 0:02:53]} 9. c3 {[%clk 0:02:53]}  Nbd7 {[%clk 0:02:43]} 10. Bf4 {[%clk 0:02:43]}  c5 {[%clk 0:02:39]} 11. Rad1 {[%clk 0:02:42]}  cxd4 {[%clk 0:02:38]} 12. Nxd4 {[%clk 0:02:34]}  Nxe4 {[%clk 0:02:38]} 13. Bxe4 {[%clk 0:02:32]}  Bxe4 {[%clk 0:02:37]} 14. Qxe4 {[%clk 0:02:33]}  Nc5 {[%clk 0:02:18]} 15. Qf3 {[%clk 0:02:25]}  Qc8 {[%clk 0:02:05]} 16. Nc6 {[%clk 0:01:57]}  Re8 {[%clk 0:02:05]} 17. Rd2 {[%clk 0:01:43]}  Bf8 {[%clk 0:02:02]} 18. b4 {[%clk 0:01:34]}  Na4 {[%clk 0:02:00]} 19. c4 {[%clk 0:01:32]}  Qb7 {[%clk 0:01:37]} 20. Rfd1 {[%clk 0:01:18]}  Rac8 {[%clk 0:01:29]} 21. b5 {[%clk 0:01:16]}  Nc5 {[%clk 0:01:27]} 22. Be3 {[%clk 0:01:10]}  Rc7 {[%clk 0:01:10]} 23. Bxc5 {[%clk 0:00:59]}  Bxc5 {[%clk 0:01:09]} 24. Rd8 {[%clk 0:00:59]}  Rxd8 {[%clk 0:00:57]} 25. Rxd8+ {[%clk 0:00:52]}  Bf8 {[%clk 0:00:57]} 26. Rb8 {[%clk 0:00:52]}  Qxb8 {[%clk 0:00:34]} 27. Nxb8 {[%clk 0:00:50]}  Rxc4 {[%clk 0:00:35]} 28. Nd7 {[%clk 0:00:48]}  Rc1+ {[%clk 0:00:33]} 0-1


[Site "https://www.chess.com"]